[Event "Titled Tuesday Blitz May 9 Late 2023"]
[White "Lorenzo De La Riva, Lazaro"]
[Black "Bashkansky, Ethan"]
[WhiteFideId "2268809"]
[BlackFideId "2071533"]
[WhiteElo "2294"]
[BlackElo "2348"]
[Result "0-1"]
[Round "02"]
[TimeControl "180+2"]
[Date "2023.05.09"]
[WhiteClock "0:00:37"]
[BlackClock "0:00:30"]

1. f4 {[%clk 0:02:55]}  f5 {[%clk 0:02:58]} 2. Nf3 {[%clk 0:02:55]}  Nf6 {[%clk 0:02:57]} 3. c4 {[%clk 0:02:55]}  g6 {[%clk 0:02:54]} 4. g3 {[%clk 0:02:56]}  Bg7 {[%clk 0:02:54]} 5. Bg2 {[%clk 0:02:56]}  O-O {[%clk 0:02:54]} 6. Nc3 {[%clk 0:02:56]}  d6 {[%clk 0:02:54]} 7. d4 {[%clk 0:02:56]}  c6 {[%clk 0:02:48]} 8. O-O {[%clk 0:02:55]}  Nbd7 {[%clk 0:02:44]} 9. Ng5 {[%clk 0:02:51]}  Nb6 {[%clk 0:02:43]} 10. b3 {[%clk 0:02:51]}  e5 {[%clk 0:02:37]} 11. e3 {[%clk 0:02:44]}  exd4 {[%clk 0:02:18]} 12. exd4 {[%clk 0:02:45]}  d5 {[%clk 0:02:17]} 13. c5 {[%clk 0:02:43]}  h6 {[%clk 0:02:13]} 14. Nf3 {[%clk 0:02:39]}  Nbd7 {[%clk 0:02:10]} 15. Ne5 {[%clk 0:02:39]}  Nxe5 {[%clk 0:02:06]} 16. fxe5 {[%clk 0:02:38]}  Ne4 {[%clk 0:02:06]} 17. Nxe4 {[%clk 0:02:37]}  fxe4 {[%clk 0:02:04]} 18. Be3 {[%clk 0:02:34]}  Be6 {[%clk 0:01:48]} 19. Qd2 {[%clk 0:02:34]}  Kh7 {[%clk 0:01:48]} 20. b4 {[%clk 0:02:34]}  Qd7 {[%clk 0:01:45]} 21. h4 {[%clk 0:02:27]}  Bh3 {[%clk 0:01:35]} 22. a4 {[%clk 0:02:18]}  Rxf1+ {[%clk 0:01:21]} 23. Rxf1 {[%clk 0:02:16]}  Bxg2 {[%clk 0:01:18]} 24. Kxg2 {[%clk 0:02:17]}  Rf8 {[%clk 0:01:18]} 25. Rxf8 {[%clk 0:02:01]}  Bxf8 {[%clk 0:01:18]} 26. Qe2 {[%clk 0:02:00]}  a6 {[%clk 0:01:10]} 27. g4 {[%clk 0:02:00]}  Qf7 {[%clk 0:01:08]} 28. Qf2 {[%clk 0:01:50]}  Qxf2+ {[%clk 0:01:03]} 29. Kxf2 {[%clk 0:01:50]}  Be7 {[%clk 0:01:03]} 30. Kg3 {[%clk 0:01:48]}  Bd8 {[%clk 0:00:56]} 31. e6 {[%clk 0:01:45]}  Kg7 {[%clk 0:00:49]} 32. Bf4 {[%clk 0:01:44]}  g5 {[%clk 0:00:27]} 33. Bd6 {[%clk 0:01:22]}  gxh4+ {[%clk 0:00:20]} 34. Kh3 {[%clk 0:01:21]}  Kf6 {[%clk 0:00:21]} 35. Kxh4 {[%clk 0:01:16]}  Kxe6+ {[%clk 0:00:21]} 36. Kg3 {[%clk 0:01:08]}  Bf6 {[%clk 0:00:21]} 37. Bf4 {[%clk 0:01:04]}  Bxd4 {[%clk 0:00:19]} 38. Bxh6 {[%clk 0:01:04]}  Bc3 {[%clk 0:00:19]} 39. Be3 {[%clk 0:01:04]}  Bxb4 {[%clk 0:00:19]} 40. Bd4 {[%clk 0:01:03]}  Bd2 {[%clk 0:00:18]} 41. Kf2 {[%clk 0:00:58]}  Kf7 {[%clk 0:00:16]} 42. Ke2 {[%clk 0:00:58]}  Bg5 {[%clk 0:00:16]} 43. Kf2 {[%clk 0:00:58]}  Kg6 {[%clk 0:00:17]} 44. Kg3 {[%clk 0:00:59]}  Bc1 {[%clk 0:00:17]} 45. Kh4 {[%clk 0:00:59]}  Bd2 {[%clk 0:00:16]} 46. Kg3 {[%clk 0:00:59]}  Kg5 {[%clk 0:00:16]} 47. Kh3 {[%clk 0:00:57]}  Bf4 {[%clk 0:00:15]} 48. Bf2 {[%clk 0:00:53]}  e3 {[%clk 0:00:16]} 49. Bh4+ {[%clk 0:00:54]}  Kg6 {[%clk 0:00:15]} 50. Kg2 {[%clk 0:00:55]}  d4 {[%clk 0:00:15]} 51. Kf3 {[%clk 0:00:55]}  d3 {[%clk 0:00:16]} 52. Bd8 {[%clk 0:00:49]}  d2 {[%clk 0:00:16]} 53. Ke2 {[%clk 0:00:49]}  Bg5 {[%clk 0:00:16]} 54. Bc7 {[%clk 0:00:49]}  Kf7 {[%clk 0:00:16]} 55. Bh2 {[%clk 0:00:24]}  Ke6 {[%clk 0:00:16]} 56. Bg1 {[%clk 0:00:24]}  Kd5 {[%clk 0:00:15]} 57. Bxe3 {[%clk 0:00:25]}  Bxe3 {[%clk 0:00:15]} 58. Kd1 {[%clk 0:00:26]}  Bg5 {[%clk 0:00:15]} 59. Ke2 {[%clk 0:00:23]}  Kxc5 {[%clk 0:00:16]} 60. Kd3 {[%clk 0:00:23]}  Kb4 {[%clk 0:00:17]} 61. Ke4 {[%clk 0:00:24]}  Kxa4 {[%clk 0:00:17]} 62. Kf5 {[%clk 0:00:25]}  d1=Q {[%clk 0:00:18]} 63. Kxg5 {[%clk 0:00:26]}  c5 {[%clk 0:00:18]} 64. Kf6 {[%clk 0:00:27]}  c4 {[%clk 0:00:19]} 65. g5 {[%clk 0:00:28]}  c3 {[%clk 0:00:19]} 66. g6 {[%clk 0:00:29]}  c2 {[%clk 0:00:20]} 67. g7 {[%clk 0:00:29]}  Qd4+ {[%clk 0:00:21]} 68. Kf7 {[%clk 0:00:29]}  Qxg7+ {[%clk 0:00:22]} 69. Kxg7 {[%clk 0:00:30]}  c1=Q {[%clk 0:00:23]} 70. Kf7 {[%clk 0:00:31]}  b5 {[%clk 0:00:23]} 71. Kf6 {[%clk 0:00:32]}  Qd2 {[%clk 0:00:24]} 72. Ke6 {[%clk 0:00:33]}  b4 {[%clk 0:00:25]} 73. Ke5 {[%clk 0:00:33]}  b3 {[%clk 0:00:26]} 74. Ke6 {[%clk 0:00:34]}  b2 {[%clk 0:00:27]} 75. Ke5 {[%clk 0:00:34]}  b1=Q {[%clk 0:00:28]} 76. Ke6 {[%clk 0:00:35]}  Qbe1+ {[%clk 0:00:27]} 77. Kf6 {[%clk 0:00:35]}  Qdf2+ {[%clk 0:00:28]} 78. Kg6 {[%clk 0:00:36]}  Qeg1+ {[%clk 0:00:29]} 79. Kh6 {[%clk 0:00:37]}  Qfh2# {[%clk 0:00:30]} 0-1


[Site "https://www.chess.com"]

[Event "Titled Tuesday Blitz May 9 Late 2023"]
[White "Al-Saffar, Araz Basim Mohammed S"]
[Black "Spitzl, Vinzent"]
[WhiteFideId "4801040"]
[BlackFideId "12901253"]
[WhiteElo "2304"]
[BlackElo "2225"]
[Result "1-0"]
[Round "02"]
[TimeControl "180+2"]
[Date "2023.05.09"]
[WhiteClock "0:01:06"]
[BlackClock "0:00:00"]

1. d4 {[%clk 0:02:59]}  d5 {[%clk 0:02:59]} 2. c4 {[%clk 0:02:59]}  e6 {[%clk 0:02:59]} 3. Nc3 {[%clk 0:02:59]}  Nf6 {[%clk 0:02:58]} 4. Nf3 {[%clk 0:02:57]}  Bb4 {[%clk 0:02:58]} 5. cxd5 {[%clk 0:02:55]}  exd5 {[%clk 0:02:58]} 6. Qa4+ {[%clk 0:02:55]}  Nc6 {[%clk 0:02:58]} 7. Bg5 {[%clk 0:02:55]}  h6 {[%clk 0:02:57]} 8. Bxf6 {[%clk 0:02:55]}  Qxf6 {[%clk 0:02:57]} 9. e3 {[%clk 0:02:55]}  O-O {[%clk 0:02:52]} 10. Bb5 {[%clk 0:02:55]}  Bxc3+ {[%clk 0:02:41]} 11. bxc3 {[%clk 0:02:55]}  Ne7 {[%clk 0:02:41]} 12. O-O {[%clk 0:02:51]}  c6 {[%clk 0:02:41]} 13. Bd3 {[%clk 0:02:51]}  Bf5 {[%clk 0:02:41]} 14. Bxf5 {[%clk 0:02:44]}  Nxf5 {[%clk 0:02:42]} 15. c4 {[%clk 0:02:44]}  dxc4 {[%clk 0:02:38]} 16. Qxc4 {[%clk 0:02:43]}  Nd6 {[%clk 0:02:38]} 17. Qc2 {[%clk 0:02:36]}  Qe6 {[%clk 0:02:37]} 18. Rab1 {[%clk 0:02:36]}  Rfe8 {[%clk 0:02:35]} 19. Rfc1 {[%clk 0:02:35]}  Rac8 {[%clk 0:02:31]} 20. a4 {[%clk 0:02:34]}  Qd5 {[%clk 0:02:15]} 21. Qc5 {[%clk 0:02:33]}  b6 {[%clk 0:02:09]} 22. Qxd5 {[%clk 0:02:29]}  cxd5 {[%clk 0:02:10]} 23. Ne5 {[%clk 0:02:28]}  Nc4 {[%clk 0:02:04]} 24. Nxc4 {[%clk 0:02:10]}  Rxc4 {[%clk 0:01:54]} 25. Rxc4 {[%clk 0:02:11]}  dxc4 {[%clk 0:01:55]} 26. Kf1 {[%clk 0:02:11]}  Kf8 {[%clk 0:01:51]} 27. Ke2 {[%clk 0:02:11]}  Ke7 {[%clk 0:01:51]} 28. Kd2 {[%clk 0:02:08]}  Kd6 {[%clk 0:01:40]} 29. Kc3 {[%clk 0:02:08]}  Kd5 {[%clk 0:01:37]} 30. Rb5+ {[%clk 0:02:07]}  Ke4 {[%clk 0:01:37]} 31. a5 {[%clk 0:01:55]}  Re6 {[%clk 0:01:15]} 32. a6 {[%clk 0:01:36]}  f6 {[%clk 0:00:56]} 33. Kd2 {[%clk 0:01:27]}  c3+ {[%clk 0:00:49]} 34. Ke2 {[%clk 0:01:27]}  Re5 {[%clk 0:00:20]} 35. dxe5 {[%clk 0:01:23]}  c2 {[%clk 0:00:00]} 36. e6 {[%clk 0:01:06]} 1-0


[Site "https://www.chess.com"]

[Event "Titled Tuesday Blitz May 9 Late 2023"]
[White "Reprintsev, Alexander"]
[Black "Ingunza Curro, Andres"]
[WhiteFideId "14100541"]
[BlackFideId "24526371"]
[WhiteElo "2218"]
[BlackElo "2247"]
[Result "1-0"]
[Round "02"]
[TimeControl "180+2"]
[Date "2023.05.09"]
[WhiteClock "0:02:32"]
[BlackClock "0:02:10"]

1. e4 {[%clk 0:03:00]}  e5 {[%clk 0:02:59]} 2. Nf3 {[%clk 0:02:59]}  Nc6 {[%clk 0:03:00]} 3. Bc4 {[%clk 0:02:58]}  Nf6 {[%clk 0:02:59]} 4. Ng5 {[%clk 0:02:58]}  d5 {[%clk 0:02:59]} 5. exd5 {[%clk 0:02:58]}  Na5 {[%clk 0:03:00]} 6. Bb5+ {[%clk 0:02:58]}  c6 {[%clk 0:03:00]} 7. dxc6 {[%clk 0:02:58]}  bxc6 {[%clk 0:03:01]} 8. Bd3 {[%clk 0:02:57]}  Nd5 {[%clk 0:03:02]} 9. h4 {[%clk 0:02:46]}  h6 {[%clk 0:03:00]} 10. Qh5 {[%clk 0:02:45]}  Qc7 {[%clk 0:02:48]} 11. Nxf7 {[%clk 0:02:39]}  Nf6 {[%clk 0:02:40]} 12. Qxe5+ {[%clk 0:02:37]}  Qxe5+ {[%clk 0:02:17]} 13. Nxe5 {[%clk 0:02:34]}  Bd6 {[%clk 0:02:10]} 14. Ng6 {[%clk 0:02:32]} 1-0


[Site "https://www.chess.com"]

[Event "Titled Tuesday Blitz May 9 Late 2023"]
[White "Cruz, William Ferreira Da"]
[Black "Szente Varga, Fruzsina"]
[WhiteFideId "2118050"]
[BlackFideId "712264"]
[WhiteElo "2223"]
[BlackElo "1994"]
[Result "1-0"]
[Round "02"]
[TimeControl "180+2"]
[Date "2023.05.09"]
[WhiteClock "0:01:00"]
[BlackClock "0:01:06"]

1. d4 {[%clk 0:02:56]}  Nf6 {[%clk 0:03:00]} 2. c4 {[%clk 0:02:55]}  g6 {[%clk 0:03:00]} 3. Nc3 {[%clk 0:02:55]}  Bg7 {[%clk 0:03:01]} 4. e4 {[%clk 0:02:56]}  d6 {[%clk 0:03:02]} 5. Nf3 {[%clk 0:02:56]}  O-O {[%clk 0:03:02]} 6. Be2 {[%clk 0:02:55]}  e5 {[%clk 0:03:03]} 7. O-O {[%clk 0:02:56]}  Nc6 {[%clk 0:03:03]} 8. d5 {[%clk 0:02:56]}  Ne7 {[%clk 0:03:03]} 9. Ne1 {[%clk 0:02:54]}  Nd7 {[%clk 0:03:04]} 10. Be3 {[%clk 0:02:54]}  f5 {[%clk 0:03:04]} 11. f3 {[%clk 0:02:54]}  f4 {[%clk 0:03:04]} 12. Bf2 {[%clk 0:02:54]}  g5 {[%clk 0:03:04]} 13. Rc1 {[%clk 0:02:52]}  h5 {[%clk 0:02:50]} 14. c5 {[%clk 0:02:51]}  Nf6 {[%clk 0:02:43]} 15. cxd6 {[%clk 0:02:50]}  cxd6 {[%clk 0:02:44]} 16. Nb5 {[%clk 0:02:28]}  Ne8 {[%clk 0:02:43]} 17. h3 {[%clk 0:02:19]}  Ng6 {[%clk 0:02:27]} 18. Nxa7 {[%clk 0:02:02]}  Bd7 {[%clk 0:02:24]} 19. Bb5 {[%clk 0:01:59]}  Bxh3 {[%clk 0:01:55]} 20. gxh3 {[%clk 0:01:57]}  Qa5 {[%clk 0:01:55]} 21. Qa4 {[%clk 0:01:32]}  Qd2 {[%clk 0:01:37]} 22. Rc2 {[%clk 0:01:13]}  Qd1 {[%clk 0:01:33]} 23. Be2 {[%clk 0:01:07]}  Qb1 {[%clk 0:01:16]} 24. Nd3 {[%clk 0:01:05]}  Rxa7 {[%clk 0:01:06]} 25. Bxa7 {[%clk 0:01:00]} 1-0


[Site "https://www.chess.com"]

[Event "Titled Tuesday Blitz May 9 Late 2023"]
[White "Bagrationi, Alexander"]
[Black "Sarkar, Justin"]
[WhiteFideId "14104954"]
[BlackFideId "2010011"]
[WhiteElo "2398"]
[BlackElo "2168"]
[Result "0-1"]
[Round "02"]
[TimeControl "180+2"]
[Date "2023.05.09"]
[WhiteClock "0:00:20"]
[BlackClock "0:00:06"]

1. e4 {[%clk 0:01:45]}  e5 {[%clk 0:02:58]} 2. Nf3 {[%clk 0:01:45]}  Nc6 {[%clk 0:02:58]} 3. Bc4 {[%clk 0:01:45]}  Nf6 {[%clk 0:02:57]} 4. Ng5 {[%clk 0:01:45]}  d5 {[%clk 0:02:55]} 5. exd5 {[%clk 0:01:45]}  Nd4 {[%clk 0:02:52]} 6. c3 {[%clk 0:01:42]}  b5 {[%clk 0:02:51]} 7. cxd4 {[%clk 0:01:33]}  bxc4 {[%clk 0:02:50]} 8. dxe5 {[%clk 0:01:34]}  Nxd5 {[%clk 0:02:48]} 9. d3 {[%clk 0:01:30]}  Bb4+ {[%clk 0:02:45]} 10. Kf1 {[%clk 0:01:28]}  O-O {[%clk 0:02:39]} 11. Na3 {[%clk 0:01:14]}  Bxa3 {[%clk 0:02:19]} 12. bxa3 {[%clk 0:01:13]}  Nc3 {[%clk 0:02:17]} 13. Qc2 {[%clk 0:01:07]}  Qxd3+ {[%clk 0:02:14]} 14. Qxd3 {[%clk 0:01:07]}  cxd3 {[%clk 0:02:14]} 15. Bd2 {[%clk 0:01:08]}  Nd5 {[%clk 0:02:08]} 16. Rc1 {[%clk 0:01:06]}  Rb8 {[%clk 0:02:05]} 17. h4 {[%clk 0:01:02]}  Rb2 {[%clk 0:02:03]} 18. Ke1 {[%clk 0:01:03]}  Rxa2 {[%clk 0:02:01]} 19. h5 {[%clk 0:00:55]}  h6 {[%clk 0:01:57]} 20. Ne4 {[%clk 0:00:55]}  Rxa3 {[%clk 0:01:56]} 21. Rh4 {[%clk 0:00:54]}  a5 {[%clk 0:01:52]} 22. Nc5 {[%clk 0:00:50]}  Bf5 {[%clk 0:01:45]} 23. Rd4 {[%clk 0:00:48]}  c6 {[%clk 0:01:39]} 24. g4 {[%clk 0:00:48]}  Bh7 {[%clk 0:01:36]} 25. f4 {[%clk 0:00:48]}  Re8 {[%clk 0:01:27]} 26. Kf1 {[%clk 0:00:25]}  f6 {[%clk 0:01:19]} 27. e6 {[%clk 0:00:24]}  Ra2 {[%clk 0:01:04]} 28. Ke1 {[%clk 0:00:23]}  f5 {[%clk 0:00:28]} 29. g5 {[%clk 0:00:23]}  g6 {[%clk 0:00:29]} 30. hxg6 {[%clk 0:00:17]}  Bxg6 {[%clk 0:00:28]} 31. gxh6 {[%clk 0:00:18]}  Rc2 {[%clk 0:00:22]} 32. Rxc2 {[%clk 0:00:11]}  dxc2 {[%clk 0:00:22]} 33. Rc4 {[%clk 0:00:12]}  Bf7 {[%clk 0:00:16]} 34. Rxc2 {[%clk 0:00:12]}  Bxe6 {[%clk 0:00:16]} 35. Kf2 {[%clk 0:00:12]}  Kh7 {[%clk 0:00:15]} 36. Bxa5 {[%clk 0:00:12]}  Nxf4 {[%clk 0:00:13]} 37. Bd2 {[%clk 0:00:11]}  Nd5 {[%clk 0:00:10]} 38. Rb2 {[%clk 0:00:11]}  Bf7 {[%clk 0:00:05]} 39. Rb7 {[%clk 0:00:10]}  Re7 {[%clk 0:00:05]} 40. Rb8 {[%clk 0:00:09]}  Re8 {[%clk 0:00:04]} 41. Rxe8 {[%clk 0:00:07]}  Bxe8 {[%clk 0:00:03]} 42. Bg5 {[%clk 0:00:07]}  Bg6 {[%clk 0:00:03]} 43. Ne6 {[%clk 0:00:07]}  Bf7 {[%clk 0:00:01]} 44. Nf8+ {[%clk 0:00:06]}  Kg8 {[%clk 0:00:01]} 45. h7+ {[%clk 0:00:06]}  Kg7 {[%clk 0:00:01]} 46. Bf6+ {[%clk 0:00:07]}  Nxf6 {[%clk 0:00:01]} 47. h8=Q+ {[%clk 0:00:07]}  Kxh8 {[%clk 0:00:01]} 48. Nd7 {[%clk 0:00:08]}  Kg7 {[%clk 0:00:01]} 49. Ne5 {[%clk 0:00:08]}  Ng4+ {[%clk 0:00:01]} 50. Nxg4 {[%clk 0:00:08]}  fxg4 {[%clk 0:00:02]} 51. Kg3 {[%clk 0:00:09]}  c5 {[%clk 0:00:02]} 52. Kxg4 {[%clk 0:00:10]}  c4 {[%clk 0:00:02]} 53. Kf3 {[%clk 0:00:11]}  c3 {[%clk 0:00:03]} 54. Ke2 {[%clk 0:00:11]}  c2 {[%clk 0:00:03]} 55. Kd2 {[%clk 0:00:12]}  Bg6 {[%clk 0:00:04]} 56. Kc1 {[%clk 0:00:13]}  Kf6 {[%clk 0:00:04]} 57. Kb2 {[%clk 0:00:14]}  Ke5 {[%clk 0:00:05]} 58. Kc1 {[%clk 0:00:15]}  Kd4 {[%clk 0:00:05]} 59. Kd2 {[%clk 0:00:15]}  Kc4 {[%clk 0:00:05]} 60. Kc1 {[%clk 0:00:16]}  Kd3 {[%clk 0:00:05]} 61. Kb2 {[%clk 0:00:17]}  Kd2 {[%clk 0:00:06]} 62. Kb3 {[%clk 0:00:17]}  c1=Q {[%clk 0:00:06]} 63. Kb4 {[%clk 0:00:18]}  Qc6 {[%clk 0:00:06]} 64. Kb3 {[%clk 0:00:19]}  Qc5 {[%clk 0:00:06]} 65. Kb2 {[%clk 0:00:19]}  Qb4+ {[%clk 0:00:07]} 66. Ka1 {[%clk 0:00:20]}  Qa3# {[%clk 0:00:06]} 0-1


[Site "https://www.chess.com"]

[Event "Titled Tuesday Blitz May 9 Late 2023"]
[White "Celestino, Rafael Teixeira"]
[Black "Dragomirescu, Robin-Alexandru"]
[WhiteFideId "2108925"]
[BlackFideId "1213849"]
[WhiteElo "2331"]
[BlackElo "2356"]
[Result "0-1"]
[Round "02"]
[TimeControl "180+2"]
[Date "2023.05.09"]
[WhiteClock "0:00:09"]
[BlackClock "0:00:16"]

1. e4 {[%clk 0:03:00]}  Nc6 {[%clk 0:02:59]} 2. Nf3 {[%clk 0:02:59]}  f5 {[%clk 0:02:56]} 3. exf5 {[%clk 0:02:49]}  d5 {[%clk 0:02:54]} 4. Bb5 {[%clk 0:02:49]}  Bxf5 {[%clk 0:02:54]} 5. Ne5 {[%clk 0:02:48]}  Qd6 {[%clk 0:02:45]} 6. d4 {[%clk 0:02:47]}  Nf6 {[%clk 0:02:43]} 7. Bf4 {[%clk 0:02:42]}  Qb4+ {[%clk 0:02:40]} 8. Nc3 {[%clk 0:02:41]}  Qxb2 {[%clk 0:02:36]} 9. Nxc6 {[%clk 0:02:19]}  a6 {[%clk 0:02:11]} 10. Nxe7+ {[%clk 0:01:41]}  Kxe7 {[%clk 0:02:00]} 11. O-O {[%clk 0:01:16]}  Qxc3 {[%clk 0:01:49]} 12. Re1+ {[%clk 0:01:03]}  Kf7 {[%clk 0:01:49]} 13. Bd3 {[%clk 0:00:52]}  Bxd3 {[%clk 0:01:29]} 14. cxd3 {[%clk 0:00:53]}  c6 {[%clk 0:01:02]} 15. Rb1 {[%clk 0:00:50]}  h6 {[%clk 0:00:24]} 16. Rxb7+ {[%clk 0:00:50]}  Kg6 {[%clk 0:00:24]} 17. Be5 {[%clk 0:00:44]}  Re8 {[%clk 0:00:23]} 18. Re3 {[%clk 0:00:30]}  Be7 {[%clk 0:00:21]} 19. Rg3+ {[%clk 0:00:29]}  Kh7 {[%clk 0:00:22]} 20. h4 {[%clk 0:00:22]}  Rhf8 {[%clk 0:00:22]} 21. Qf3 {[%clk 0:00:17]}  Qc1+ {[%clk 0:00:12]} 22. Kh2 {[%clk 0:00:16]}  Kh8 {[%clk 0:00:11]} 23. Qf5 {[%clk 0:00:13]}  Rf7 {[%clk 0:00:06]} 24. Qg6 {[%clk 0:00:11]}  Ref8 {[%clk 0:00:06]} 25. Bd6 {[%clk 0:00:08]}  Bxd6 {[%clk 0:00:05]} 26. Rxf7 {[%clk 0:00:09]}  Rxf7 {[%clk 0:00:05]} 27. Qxf7 {[%clk 0:00:09]}  Bxg3+ {[%clk 0:00:06]} 28. Kxg3 {[%clk 0:00:10]}  Kh7 {[%clk 0:00:04]} 29. h5 {[%clk 0:00:09]}  Qd2 {[%clk 0:00:05]} 30. Qg6+ {[%clk 0:00:08]}  Kg8 {[%clk 0:00:05]} 31. f3 {[%clk 0:00:09]}  Qg5+ {[%clk 0:00:06]} 32. Qxg5 {[%clk 0:00:09]}  hxg5 {[%clk 0:00:07]} 33. f4 {[%clk 0:00:09]}  g4 {[%clk 0:00:06]} 34. Kh4 {[%clk 0:00:07]}  Kf7 {[%clk 0:00:06]} 35. Kg5 {[%clk 0:00:07]}  Ke7 {[%clk 0:00:06]} 36. g3 {[%clk 0:00:06]}  Kf7 {[%clk 0:00:05]} 37. h6 {[%clk 0:00:06]}  gxh6+ {[%clk 0:00:05]} 38. Kxh6 {[%clk 0:00:07]}  Ne8 {[%clk 0:00:06]} 39. Kg5 {[%clk 0:00:08]}  Nf6 {[%clk 0:00:06]} 40. Kf5 {[%clk 0:00:08]}  Nh5 {[%clk 0:00:05]} 41. Kxg4 {[%clk 0:00:08]}  Kg6 {[%clk 0:00:06]} 42. Kf3 {[%clk 0:00:08]}  Nf6 {[%clk 0:00:05]} 43. g4 {[%clk 0:00:09]}  Nd7 {[%clk 0:00:05]} 44. Kg3 {[%clk 0:00:08]}  Nf8 {[%clk 0:00:05]} 45. Kh4 {[%clk 0:00:08]}  Nd7 {[%clk 0:00:04]} 46. f5+ {[%clk 0:00:07]}  Kf6 {[%clk 0:00:05]} 47. Kh5 {[%clk 0:00:08]}  c5 {[%clk 0:00:05]} 48. g5+ {[%clk 0:00:07]}  Kxf5 {[%clk 0:00:05]} 49. g6 {[%clk 0:00:08]}  Nf6+ {[%clk 0:00:05]} 50. Kh6 {[%clk 0:00:08]}  cxd4 {[%clk 0:00:05]} 51. g7 {[%clk 0:00:08]}  Ng8+ {[%clk 0:00:05]} 52. Kh7 {[%clk 0:00:08]}  Ne7 {[%clk 0:00:06]} 53. Kh6 {[%clk 0:00:08]}  Kf6 {[%clk 0:00:06]} 54. a3 {[%clk 0:00:06]}  a5 {[%clk 0:00:06]} 55. a4 {[%clk 0:00:07]}  Nf5+ {[%clk 0:00:06]} 56. Kh5 {[%clk 0:00:06]}  Nxg7+ {[%clk 0:00:07]} 57. Kg4 {[%clk 0:00:07]}  Ne6 {[%clk 0:00:08]} 58. Kf3 {[%clk 0:00:07]}  Ke5 {[%clk 0:00:08]} 59. Kg4 {[%clk 0:00:07]}  Nc5 {[%clk 0:00:09]} 60. Kf3 {[%clk 0:00:07]}  Nxa4 {[%clk 0:00:10]} 61. Ke2 {[%clk 0:00:08]}  Nc5 {[%clk 0:00:11]} 62. Kd2 {[%clk 0:00:09]}  a4 {[%clk 0:00:12]} 63. Kc2 {[%clk 0:00:09]}  Kf4 {[%clk 0:00:13]} 64. Kd2 {[%clk 0:00:09]}  Kf3 {[%clk 0:00:13]} 65. Kc2 {[%clk 0:00:09]}  Ke3 {[%clk 0:00:14]} 66. Kb2 {[%clk 0:00:09]}  Kxd3 {[%clk 0:00:15]} 67. Ka3 {[%clk 0:00:10]}  Kc4 {[%clk 0:00:14]} 68. Kb2 {[%clk 0:00:10]}  Kb4 {[%clk 0:00:15]} 69. Ka2 {[%clk 0:00:10]}  a3 {[%clk 0:00:15]} 70. Kb1 {[%clk 0:00:10]}  Kb3 {[%clk 0:00:16]} 71. Ka1 {[%clk 0:00:11]}  d3 {[%clk 0:00:16]} 72. Kb1 {[%clk 0:00:09]}  d2 {[%clk 0:00:16]} 0-1


[Site "https://www.chess.com"]

[Event "Titled Tuesday Blitz May 9 Late 2023"]
[White "Smiechu"]
[Black "Moore, Nicholas"]
[BlackFideId "4303709"]
[WhiteElo "2322"]
[BlackElo "2498"]
[Result "0-1"]
[Round "02"]
[TimeControl "180+2"]
[Date "2023.05.09"]
[WhiteClock "0:00:53"]
[BlackClock "0:01:12"]

1. e4 {[%clk 0:02:57]}  c5 {[%clk 0:02:57]} 2. Nf3 {[%clk 0:02:56]}  e6 {[%clk 0:02:57]} 3. d4 {[%clk 0:02:55]}  cxd4 {[%clk 0:02:58]} 4. Nxd4 {[%clk 0:02:54]}  Nc6 {[%clk 0:02:59]} 5. Nc3 {[%clk 0:02:54]}  Qc7 {[%clk 0:02:59]} 6. Be3 {[%clk 0:02:53]}  a6 {[%clk 0:03:00]} 7. Bd3 {[%clk 0:02:53]}  b5 {[%clk 0:02:47]} 8. Nxc6 {[%clk 0:02:52]}  Qxc6 {[%clk 0:02:45]} 9. O-O {[%clk 0:02:51]}  Bb7 {[%clk 0:02:44]} 10. a4 {[%clk 0:02:44]}  b4 {[%clk 0:02:44]} 11. Ne2 {[%clk 0:02:44]}  Nf6 {[%clk 0:02:44]} 12. Nd4 {[%clk 0:02:44]}  Qc7 {[%clk 0:02:42]} 13. f3 {[%clk 0:02:40]}  Bc5 {[%clk 0:02:42]} 14. Kh1 {[%clk 0:02:36]}  O-O {[%clk 0:02:35]} 15. c3 {[%clk 0:02:35]}  bxc3 {[%clk 0:02:27]} 16. bxc3 {[%clk 0:02:31]}  d5 {[%clk 0:02:27]} 17. Bg5 {[%clk 0:02:16]}  Be7 {[%clk 0:02:20]} 18. Bxf6 {[%clk 0:01:53]}  Bxf6 {[%clk 0:02:18]} 19. Rc1 {[%clk 0:01:53]}  Rfd8 {[%clk 0:02:07]} 20. exd5 {[%clk 0:01:49]}  Bxd5 {[%clk 0:02:05]} 21. Qc2 {[%clk 0:01:39]}  g6 {[%clk 0:02:04]} 22. Ne2 {[%clk 0:01:37]}  Rab8 {[%clk 0:01:43]} 23. Be4 {[%clk 0:01:36]}  Bb3 {[%clk 0:01:41]} 24. Qb2 {[%clk 0:01:32]}  Bxa4 {[%clk 0:01:36]} 25. Qa3 {[%clk 0:01:32]}  Bb5 {[%clk 0:01:34]} 26. Rfe1 {[%clk 0:01:26]}  Bc4 {[%clk 0:01:34]} 27. h3 {[%clk 0:01:12]}  Rd2 {[%clk 0:01:23]} 28. Nd4 {[%clk 0:01:04]}  Qg3 {[%clk 0:01:14]} 29. Rg1 {[%clk 0:00:53]}  Be5 {[%clk 0:01:12]} 0-1


[Site "https://www.chess.com"]

[Event "Titled Tuesday Blitz May 9 Late 2023"]
[White "FuenfgegenWilly"]
[Black "Guz, Ari"]
[BlackFideId "2825759"]
[WhiteElo "2314"]
[BlackElo "2205"]
[Result "1/2-1/2"]
[Round "02"]
[TimeControl "180+2"]
[Date "2023.05.09"]
[WhiteClock "0:00:44"]
[BlackClock "0:01:19"]

1. Nf3 {[%clk 0:03:00]}  Nf6 {[%clk 0:02:47]} 2. b3 {[%clk 0:02:59]}  g6 {[%clk 0:02:48]} 3. Bb2 {[%clk 0:02:59]}  Bg7 {[%clk 0:02:49]} 4. g3 {[%clk 0:02:59]}  O-O {[%clk 0:02:49]} 5. Bg2 {[%clk 0:02:59]}  a5 {[%clk 0:02:49]} 6. a4 {[%clk 0:02:57]}  Nc6 {[%clk 0:02:48]} 7. O-O {[%clk 0:02:55]}  d6 {[%clk 0:02:48]} 8. d4 {[%clk 0:02:55]}  Bf5 {[%clk 0:02:48]} 9. Nh4 {[%clk 0:02:52]}  Bd7 {[%clk 0:02:45]} 10. e4 {[%clk 0:02:51]}  e5 {[%clk 0:02:45]} 11. d5 {[%clk 0:02:51]}  Nb4 {[%clk 0:02:45]} 12. c4 {[%clk 0:02:42]}  Qc8 {[%clk 0:02:21]} 13. Nc3 {[%clk 0:02:39]}  Bh3 {[%clk 0:02:21]} 14. Rc1 {[%clk 0:02:33]}  Bxg2 {[%clk 0:02:20]} 15. Kxg2 {[%clk 0:02:33]}  Na6 {[%clk 0:02:21]} 16. Ba3 {[%clk 0:02:25]}  b6 {[%clk 0:02:16]} 17. Qd3 {[%clk 0:02:12]}  Nd7 {[%clk 0:02:03]} 18. Nb5 {[%clk 0:02:01]}  Nac5 {[%clk 0:02:01]} 19. Qb1 {[%clk 0:02:01]}  Na6 {[%clk 0:01:55]} 20. h3 {[%clk 0:01:49]}  Ndc5 {[%clk 0:01:54]} 21. Rc3 {[%clk 0:01:45]}  f5 {[%clk 0:01:47]} 22. exf5 {[%clk 0:01:35]}  gxf5 {[%clk 0:01:48]} 23. Rf3 {[%clk 0:01:32]}  e4 {[%clk 0:01:47]} 24. Re3 {[%clk 0:01:30]}  Bf6 {[%clk 0:01:42]} 25. Bb2 {[%clk 0:01:23]}  Bxh4 {[%clk 0:01:39]} 26. gxh4 {[%clk 0:01:24]}  Kf7 {[%clk 0:01:37]} 27. Kh2 {[%clk 0:01:16]}  Rg8 {[%clk 0:01:37]} 28. Rg1 {[%clk 0:01:16]}  Qd8 {[%clk 0:01:36]} 29. Rxg8 {[%clk 0:01:10]}  Qxg8 {[%clk 0:01:34]} 30. Rg3 {[%clk 0:01:10]}  Qf8 {[%clk 0:01:27]} 31. Qd1 {[%clk 0:01:09]}  Qh6 {[%clk 0:01:25]} 32. Rg7+ {[%clk 0:01:05]}  Kf8 {[%clk 0:01:25]} 33. Qg1 {[%clk 0:00:45]}  Qf4+ {[%clk 0:01:20]} 34. Kh1 {[%clk 0:00:45]}  Qf3+ {[%clk 0:01:21]} 35. Kh2 {[%clk 0:00:45]}  Qf4+ {[%clk 0:01:21]} 36. Kh1 {[%clk 0:00:45]}  Qf3+ {[%clk 0:01:19]} 37. Kh2 {[%clk 0:00:44]}  Qf4+ {[%clk 0:01:19]} 1/2-1/2


[Site "https://www.chess.com"]